fUSD/lending_fUSD_20241221
["ID","MTS","AMOUNT","RATE_DAILY","PERIOD"]
[346159585,1734760249273,-2257.78,0.00021497,2]
[346159586,1734760249282,-649.23,0.00021497,2]
[346159587,1734760249291,-1141.32,0.00021497,2]
[346159588,1734760249301,-2236.27,0.00021497,2]
[346159589,1734760249312,-500.0,0.00021497,2]
[346159590,1734760249322,-1766.19,0.00021497,2]
[346159591,1734760249331,-3872.01,0.00021497,2]
[346159592,1734760249340,-851.71,0.00021497,2]
[346159593,1734760249350,-1907.50335697,0.00021497,2]
[346159594,1734760249365,-837.66664303,0.00021497,2]
[346159595,1734760249374,-5611.37,0.00021497,2]
[346159596,1734760249384,-2337.7,0.00021497,2]
[346159597,1734760249393,-1289.61,0.00021497,2]
[346159598,1734760249403,-840.92,0.00021497,2]
[346159599,1734760249412,-8217.44,0.00021497,2]
[346159600,1734760249421,-500.0,0.00021498,2]
[346159601,1734760249431,-524.4,0.00021498,2]
[346159602,1734760249440,-500.0,0.00021498,2]
[346159603,1734760249449,-500.0,0.00021498,2]
[346159604,1734760249458,-500.0,0.00021498,2]
[346159605,1734760249467,-500.0,0.00021498,2]
[346159606,1734760249476,-500.0,0.00021498,2]
[346159607,1734760249485,-500.0,0.00021498,2]
[346159608,1734760249494,-500.0,0.00021498,2]
[346159609,1734760249503,-500.0,0.00021498,2]
[346159610,1734760249512,-500.0,0.00021498,2]
[346159611,1734760249521,-500.0,0.00021498,2]
[346159612,1734760249531,-589.82,0.00021498,2]
[346159613,1734760249543,-500.0,0.00021498,2]
[346159614,1734760249558,-574.98188519,0.00021498,2]
[346159615,1734760249570,-500.0,0.00021498,2]
[346159616,1734760249583,-500.0,0.00021498,2]
[346159617,1734760249594,-500.0,0.00021498,2]
[346159618,1734760249606,-500.0,0.00021498,2]
[346159619,1734760249616,-729.74,0.00021498,2]
[346159620,1734760249625,-500.0,0.00021498,2]
[346159621,1734760249634,-500.0,0.00021498,2]
[346159622,1734760249643,-500.0,0.00021498,2]
[346159623,1734760249652,-500.0,0.00021498,2]
[346159624,1734760249662,-500.0,0.00021498,2]
[346159625,1734760249672,-500.0,0.00021498,2]
[346159626,1734760249683,-500.0,0.00021498,2]
[346159627,1734760249692,-500.0,0.00021498,2]
[346159628,1734760249702,-550.21,0.00021498,2]
[346159629,1734760249711,-500.03,0.00021498,2]
[346159630,1734760249720,-500.0,0.00021498,2]
[346159631,1734760249729,-500.0,0.00021498,2]
[346159632,1734760249739,-500.0,0.00021498,2]
[346159633,1734760249749,-500.0,0.00021498,2]
[346159634,1734760249758,-500.0,0.00021498,2]
[346159635,1734760249768,-500.0,0.00021498,2]
[346159636,1734760249778,-500.0,0.00021498,2]
[346159637,1734760249787,-500.0,0.00021498,2]
[346159638,1734760249796,-500.0,0.00021498,2]
[346159639,1734760249806,-500.0,0.00021498,2]
[346159640,1734760249816,-1173.51,0.00021498,2]
[346159641,1734760249825,-500.0,0.00021498,2]
[346159642,1734760249835,-508.22231718,0.00021498,2]
[346159643,1734760249845,-500.0,0.00021498,2]
[346159644,1734760249856,-1052.49,0.00021498,2]
[346159645,1734760249866,-500.0,0.00021498,2]
[346159646,1734760249875,-500.0,0.00021498,2]
[346159647,1734760249884,-660.24,0.00021498,2]
[346159648,1734760249894,-500.0,0.00021498,2]
[346159649,1734760249903,-500.0,0.00021498,2]
[346159650,1734760249912,-500.0,0.00021498,2]
[346159651,1734760249921,-500.0,0.00021498,2]
[346159652,1734760249930,-500.0,0.00021498,2]
[346159653,1734760249939,-500.0,0.00021498,2]
[346159654,1734760249948,-736.22,0.00021498,2]
[346159655,1734760249958,-212.32446467,0.00021498,2]
[346159656,1734760249967,-511.13912354,0.00021498,2]
[346159657,1734760249976,-500.0,0.00021498,2]
[346159658,1734760249985,-505.13168907,0.00021498,2]
[346159659,1734760249994,-512.31885937,0.00021498,2]
[346159660,1734760250004,-500.0,0.00021498,2]
[346159661,1734760250014,-808.63,0.00021498,2]
[346159662,1734760250023,-500.0,0.00021498,2]
[346159663,1734760250032,-500.0,0.00021498,2]
[346159664,1734760250042,-882.32,0.00021498,2]
[346159665,1734760250051,-500.0,0.00021498,2]
[346159666,1734760250062,-500.0,0.00021498,2]
[346159667,1734760250071,-500.0,0.00021498,2]
[346159668,1734760250080,-500.0,0.00021498,2]
[346159669,1734760250090,-500.0,0.00021498,2]
[346159670,1734760250099,-500.0,0.00021498,2]
[346159671,1734760250108,-500.0,0.00021498,2]
[346159672,1734760250118,-500.0,0.00021498,2]
[346159673,1734760250127,-775.8,0.00021498,2]
[346159674,1734760250137,-500.0,0.00021498,2]
[346159675,1734760250146,-1000.0,0.00021498,30]
[346159676,1734760250157,-500.0,0.00021498,2]
[346159677,1734760250167,-910.72,0.00021498,2]
[346159678,1734760250176,-500.0,0.00021498,2]
[346159679,1734760250186,-641.91,0.00021498,2]
[346159680,1734760250195,-500.0,0.00021498,2]
[346159681,1734760250203,-500.0,0.00021498,2]
[346159682,1734760250212,-500.0,0.00021498,2]
[346159683,1734760250221,-1195.06,0.00021498,2]
[346159684,1734760250230,-500.0,0.00021498,2]
[346159685,1734760250239,-500.0,0.00021498,2]
[346159686,1734760250248,-500.0,0.00021498,2]
[346159687,1734760250257,-604.66,0.00021498,2]
[346159688,1734760250266,-621.83254629,0.00021498,2]
[346159689,1734760250275,-855.4,0.00021498,2]
[346159690,1734760250284,-500.0,0.00021498,2]
[346159691,1734760250293,-500.0,0.00021498,2]
[346159692,1734760250302,-865.52,0.00021498,2]
[346159693,1734760250313,-500.0,0.00021498,2]
[346159694,1734760250322,-500.0,0.00021498,2]
[346159695,1734760250332,-500.0,0.00021498,2]
[346159696,1734760250341,-500.0,0.00021498,2]
[346159697,1734760250350,-500.0,0.00021498,2]
[346159698,1734760250359,-500.0,0.00021498,2]
[346159699,1734760250369,-500.0,0.00021498,2]
[346159700,1734760250378,-500.0,0.00021498,2]
[346159701,1734760250387,-526.44,0.00021498,2]
[346159702,1734760250396,-601.93,0.00021498,2]
[346159703,1734760250405,-500.0,0.00021498,2]
[346159704,1734760250415,-982.98,0.00021498,2]
[346159705,1734760250424,-500.0,0.00021498,2]
[346159706,1734760250433,-1161.89,0.00021498,2]
[346159707,1734760250442,-500.0,0.00021498,2]
[346159708,1734760250451,-500.0,0.00021498,2]
[346159709,1734760250459,-500.0,0.00021498,2]
[346159710,1734760250468,-308.28275337,0.00021498,2]
[346159711,1734760250477,-689.5,0.00021498,2]
[346159712,1734760250486,-500.0,0.00021498,2]
[346159713,1734760250495,-614.21,0.00021498,2]
[346159714,1734760250504,-500.0,0.00021498,2]
[346159715,1734760250513,-500.0,0.00021498,2]
[346159716,1734760250522,-722.23,0.00021498,2]
[346159717,1734760250531,-500.0,0.00021498,2]
[346159718,1734760250542,-959.6,0.00021498,2]
[346159719,1734760250550,-500.0,0.00021498,2]
[346159720,1734760250560,-500.0,0.00021498,2]
[346159721,1734760250569,-500.0,0.00021498,2]
[346159722,1734760250578,-500.0,0.00021498,2]
[346159723,1734760250588,-797.23,0.00021498,2]
[346159724,1734760250597,-500.0,0.00021498,2]
[346159725,1734760250606,-575.4,0.00021498,2]
[346159726,1734760250615,-1104.5,0.00021498,2]
[346159727,1734760250626,-500.0,0.00021498,2]
[346159728,1734760250635,-623.24,0.00021498,2]
[346159729,1734760250644,-538.39,0.00021498,2]
[346159730,1734760250654,-973.78,0.00021498,2]
[346159731,1734760250663,-226.45830611,0.00021498,2]
[346159734,1734760498567,1000.0,0.0002,120]
[346159736,1734760577118,177.43,0.00010137,2]
[346159741,1734761139042,2000.0,0.0002,120]
[346159742,1734761193303,2000.0,0.0002,120]
[346159786,1734761432073,-177.43,0.00016813,2]
[346159787,1734761432084,-931.65,0.00018216,2]
[346159788,1734761432094,-614.08,0.00019958,2]
[346159789,1734761432103,-186.07,0.00019969,2]
[346159790,1734761432113,-1082.0,0.0002,2]
[346159791,1734761432123,-1500.0,0.00020002,2]
[346159792,1734761432133,-250.0,0.0002005,2]
[346159793,1734761432143,-1403.66644038,0.00020193,2]
[346159794,1734761432155,-19595.65487284,0.00020193,2]
[346159795,1734761432176,-612.23105833,0.00020193,2]
[346159796,1734761432305,-2288.44762845,0.00020193,2]
[346159797,1734761432315,-150.74,0.0002023,30]
[346159798,1734761432324,-200.0,0.00020234,2]
[346159799,1734761432334,-1646.61,0.00020263,2]
[346159800,1734761432344,-250.0,0.00020272,2]
[346159801,1734761432353,-1000.0,0.00020291,2]
[346159802,1734761432362,-166.52,0.00020353,2]
[346159803,1734761432372,-250.0,0.00020362,2]
[346159804,1734761432381,-349.7,0.00020403,2]
[346159805,1734761432391,-985.92,0.00020463,2]
[346159806,1734761432401,-931.65,0.0002048,2]
[346159807,1734761432410,-150.0,0.00020501,2]
[346159808,1734761432419,-3125.93,0.00020511,2]
[346159809,1734761432429,-167.37,0.00020575,2]
[346159810,1734761432439,-500.0,0.00020614,2]
[346159811,1734761432448,-600.0,0.00020614,2]
[346159812,1734761432458,-200.0,0.000208,7]
[346159813,1734761432468,-500.0,0.000209,7]
[346159814,1734761432477,-150.85780981,0.0002092,2]
[346159815,1734761432486,-1206.32,0.00020951,2]
[346159816,1734761432498,-1000.0,0.00021,120]
[346159817,1734761432509,-984.16,0.00021021,2]
[346159818,1734761432519,-1014.98,0.00021021,2]
[346159819,1734761432528,-1002.97,0.00021021,2]
[346159820,1734761432541,-998.9,0.00021021,2]
[346159821,1734761432550,-1000.9,0.00021021,2]
[346159822,1734761432560,-985.99,0.00021021,2]
[346159823,1734761432569,-1002.17,0.00021069,2]
[346159824,1734761432580,-150.0,0.00021074,2]
[346159825,1734761432590,-1011.4,0.00021094,2]
[346159826,1734761432599,-1009.02,0.00021094,2]
[346159827,1734761432609,-1003.93181131,0.00021097,2]
[346159828,1734761432619,-32014.0,0.00021183,2]
[346159829,1734761432629,-34750.10892422,0.00021218,2]
[346159830,1734761436153,-986.69,0.00021218,2]
[346159831,1734761436188,-847.96854869,0.00021218,2]
[346159832,1734761436275,-454.11202709,0.00021218,2]
[346159833,1734761436286,-495.82993973,0.0002128,2]
[346159834,1734761436297,-550.05803318,0.0002128,2]
[346159835,1734761436309,-1460.04280709,0.0002128,2]
[346159836,1734761436319,-2175.62642442,0.00021295,2]
[346159837,1734761436328,-601.35762431,0.00021295,2]
[346159838,1734761436337,-160.20890889,0.00021295,2]
[346159839,1734761436347,-1000.0,0.00021295,2]
[346159840,1734761436357,-500.0,0.00021296,2]
[346159842,1734761436367,-5000.0,0.00021296,2]
[346159844,1734761436376,-1000.0,0.00021297,2]
[346159846,1734761436386,-34664.2318,0.00021297,2]
[346159848,1734761436395,-186.07,0.000213,2]
[346159850,1734761436405,-150.0,0.0002135,2]
[346159851,1734761436414,-2175.62642441,0.00021362,2]
[346159852,1734761436424,-433.0,0.0002137,4]
[346159853,1734761436433,-561.117,0.0002137,2]
[346159854,1734761436442,-152.07,0.00021384,2]
[346159855,1734761436451,-152.07,0.00021385,2]
[346159856,1734761436461,-152.07,0.00021385,2]
[346159857,1734761436470,-152.07,0.00021385,2]
[346159859,1734761436480,-152.07,0.00021385,2]
[346159861,1734761436490,-1145.87,0.00021394,2]
[346159864,1734761436503,-1256.91,0.00021394,2]
[346159866,1734761436514,-500.0,0.00021394,2]
[346159867,1734761436524,-968.0,0.00021394,2]
[346159868,1734761436535,-2234.17,0.00021394,2]
[346159869,1734761436546,-1574.94,0.00021394,2]
[346159870,1734761436557,-500.0,0.00021394,2]
[346159871,1734761436567,-500.0,0.00021394,2]
[346159872,1734761436576,-2288.39,0.00021394,2]
[346159873,1734761436585,-1746.39,0.00021394,2]
[346159874,1734761436595,-2789.8,0.00021394,2]
[346159875,1734761436604,-1636.21,0.00021394,2]
[346159876,1734761436613,-2228.08,0.00021394,2]
[346159877,1734761436624,-1924.31,0.00021394,2]
[346159878,1734761436633,-3526.92,0.00021394,2]
[346159879,1734761436643,-1326.26,0.00021394,2]
[346159880,1734761436653,-500.0,0.00021394,2]
[346159881,1734761436662,-1983.1,0.00021394,2]
[346159882,1734761436672,-1390.75,0.00021394,2]
[346159883,1734761436681,-11916.67,0.00021394,2]
[346159884,1734761436693,-500.0,0.00021394,2]
[346159885,1734761436702,-500.0,0.00021394,2]
[346159886,1734761436712,-1291.37,0.00021394,2]
[346159887,1734761436722,-500.0,0.00021394,2]
[346159888,1734761436731,-1148.35,0.00021394,2]
[346159889,1734761436741,-1080.46,0.00021394,2]
[346159890,1734761436752,-1279.53,0.00021394,2]
[346159891,1734761436762,-1264.91,0.00021394,2]
[346159892,1734761436771,-500.0,0.00021394,2]
[346159893,1734761436781,-409.05531234,0.00021395,2]
[346159894,1734761436790,-500.0,0.00021395,2]
[346159895,1734761436800,-500.0,0.00021395,2]
[346159896,1734761436809,-500.0,0.00021395,2]
[346159897,1734761436819,-500.0,0.00021395,2]
[346159898,1734761436830,-500.0,0.00021395,2]
[346159899,1734761436840,-500.0,0.00021395,2]
[346159900,1734761436850,-500.0,0.00021395,2]
[346159901,1734761436860,-504.78102467,0.00021395,2]
[346159902,1734761436869,-500.0,0.00021395,2]
[346159903,1734761436880,-527.69,0.00021395,2]
[346159904,1734761436890,-500.0,0.00021395,2]
[346159905,1734761436899,-197.1621781,0.00021395,2]
[346159906,1734761436909,-500.0,0.00021395,2]
[346159907,1734761436919,-505.66950131,0.00021395,2]
[346159908,1734761436928,-517.4306167,0.00021395,2]
[346159909,1734761436937,-392.00649263,0.00021395,2]
[346159910,1734761436947,-500.0,0.00021395,2]
[346159911,1734761436956,-500.0,0.00021395,2]
[346159912,1734761436966,-500.0,0.00021395,2]
[346159913,1734761436975,-500.0,0.00021395,2]
[346159914,1734761436985,-500.0,0.00021395,2]
[346159915,1734761436994,-932.23,0.00021395,2]
[346159916,1734761437004,-500.0,0.00021395,2]
[346159917,1734761437014,-500.0,0.00021395,2]
[346159918,1734761437024,-500.0,0.00021395,2]
[346159919,1734761437035,-500.0,0.00021395,2]
[346159920,1734761437044,-500.0,0.00021395,2]
[346159921,1734761437053,-500.0,0.00021395,2]
[346159922,1734761437063,-500.0,0.00021395,2]
[346159923,1734761437072,-500.0,0.00021395,2]
[346159924,1734761437082,-500.0,0.00021395,2]
[346159925,1734761437091,-500.0,0.00021395,2]
[346159926,1734761437101,-500.0,0.00021395,2]
[346159927,1734761437110,-500.0,0.00021395,2]
[346159928,1734761437119,-500.0,0.00021395,2]
[346159929,1734761437128,-861.38,0.00021395,2]
[346159930,1734761437138,-290.09457523,0.00021395,2]
[346159931,1734761437148,-516.74801089,0.00021395,2]
[346159932,1734761437158,-450.92190698,0.00021395,2]
[346159933,1734761437167,-453.11684588,0.00021395,2]
[346159934,1734761437176,-500.0,0.00021395,2]
[346159935,1734761437186,-500.0,0.00021395,2]
[346159936,1734761437196,-500.0,0.00021395,2]
[346159937,1734761437206,-702.7,0.00021395,2]
[346159938,1734761437215,-500.0,0.00021395,2]
[346159939,1734761437225,-890.45,0.00021395,2]
[346159940,1734761437234,-500.0,0.00021395,2]
[346159941,1734761437244,-500.0,0.00021395,2]
[346159942,1734761437254,-500.0,0.00021395,2]
[346159943,1734761437263,-500.0,0.00021395,2]
[346159944,1734761437273,-609.75,0.00021395,2]
[346159945,1734761437282,-500.0,0.00021395,2]
[346159946,1734761437291,-645.33,0.00021395,2]
[346159947,1734761437301,-561.04,0.00021395,2]
[346159948,1734761437310,-429.90608568,0.00021395,2]
[346159949,1734761437319,-500.0,0.00021395,2]
[346159950,1734761437328,-713.87,0.00021395,2]
[346159951,1734761437337,-392.36186869,0.00021395,2]
[346159952,1734761437346,-500.0,0.00021395,2]
[346159953,1734761437355,-500.0,0.00021395,2]
[346159954,1734761437364,-500.0,0.00021395,2]
[346159955,1734761437373,-500.0,0.00021395,2]
[346159956,1734761437382,-500.0,0.00021395,2]
[346159957,1734761437392,-500.0,0.00021395,2]
[346159958,1734761437402,-500.0,0.00021395,2]
[346159959,1734761437411,-500.0,0.00021395,2]
[346159960,1734761437421,-415.0110633,0.00021395,2]
[346159961,1734761437432,-342.84240695,0.00021395,2]
[346159962,1734761437442,-500.0,0.00021395,2]
[346159963,1734761437452,-500.0,0.00021395,2]
[346159964,1734761437462,-500.0,0.00021395,2]
[346159965,1734761437471,-500.0,0.00021395,2]
[346159966,1734761437480,-500.0,0.00021395,2]
[346159967,1734761437489,-500.0,0.00021395,2]
[346159968,1734761437500,-500.0,0.00021395,2]
[346159969,1734761437511,-500.0,0.00021395,2]
[346159970,1734761437521,-690.92,0.00021395,2]
[346159971,1734761437530,-500.0,0.00021395,2]
[346159972,1734761437542,-500.0,0.00021395,2]
[346159973,1734761437551,-500.0,0.00021395,2]
[346159974,1734761437562,-500.0,0.00021395,2]
[346159975,1734761437571,-500.0,0.00021395,2]
[346159976,1734761437581,-648.70728061,0.00021395,2]
[346159977,1734761437590,-500.0,0.00021395,2]
[346159978,1734761437600,-500.0,0.00021395,2]
[346159979,1734761437609,-500.0,0.00021395,2]
[346159980,1734761437619,-500.0,0.00021395,2]
[346159981,1734761437629,-500.0,0.00021395,2]
[346159982,1734761437638,-500.0,0.00021395,2]
[346159983,1734761437648,-500.0,0.00021395,2]
[346159984,1734761437657,-500.0,0.00021395,2]
[346159985,1734761437667,-839.82,0.00021395,2]
[346159986,1734761437677,-500.0,0.00021395,2]
[346159987,1734761437686,-500.0,0.00021395,2]
[346159988,1734761437696,-500.0,0.00021395,2]
[346159989,1734761437705,-152.502649,0.00021395,2]
[346159990,1734761437715,-157.564534,0.00021395,2]
[346159991,1734761437724,-1381.428704,0.00021395,2]
[346159992,1734761437733,-500.0,0.00021395,2]
[346159993,1734761437743,-829.42,0.00021395,2]
[346159994,1734761437757,-500.0,0.00021395,2]
[346159995,1734761437770,-846.7,0.00021395,2]
[346159997,1734761437779,-500.0,0.00021395,2]
[346159998,1734761437789,-500.0,0.00021395,2]
[346160000,1734761437799,-248.41275228,0.00021395,2]
[346160001,1734761437808,-500.0,0.00021395,2]
[346160002,1734761437818,-517.55948386,0.00021395,2]
[346160003,1734761437828,-500.0,0.00021395,2]
[346160004,1734761437837,-500.0,0.00021395,2]
[346160005,1734761437846,-500.0,0.00021395,2]
[346160006,1734761437856,-2009.502643,0.00021395,2]
[346160007,1734761437865,-500.0,0.00021395,2]
[346160008,1734761437875,-500.0,0.00021395,2]
[346160009,1734761437884,-500.0,0.00021395,2]
[346160010,1734761437893,-257.56419974,0.00021395,2]
[346160011,1734761437903,-500.0,0.00021395,2]
[346160013,1734761437912,-500.0,0.00021395,2]
[346160014,1734761437921,-634.47,0.00021395,2]
[346160015,1734761437930,-500.0,0.00021395,2]
[346160016,1734761437939,-545.57,0.00021395,2]
[346160017,1734761437948,-500.0,0.00021395,2]
[346160018,1734761437958,-500.0,0.00021395,2]
[346160019,1734761437967,-500.0,0.00021395,2]
[346160020,1734761437977,-500.0,0.00021395,2]
[346160021,1734761437987,-500.0,0.00021395,2]
[346160022,1734761437999,-500.0,0.00021395,2]
[346160023,1734761438008,-500.0,0.00021395,2]
[346160024,1734761438018,-622.97,0.00021395,2]
[346160025,1734761438028,-500.0,0.00021395,2]
[346160026,1734761438038,-157.253544,0.00021395,2]
[346160027,1734761438047,-500.0,0.00021395,2]
[346160028,1734761438056,-152.502655,0.00021395,2]
[346160029,1734761438067,-578.09,0.00021395,2]
[346160030,1734761438076,-500.0,0.00021395,2]
[346160031,1734761438085,-500.0,0.00021395,2]
[346160032,1734761438094,-500.0,0.00021395,2]
[346160033,1734761438104,-500.0,0.00021395,2]
[346160034,1734761438114,-606.78,0.00021395,2]
[346160035,1734761438124,-510.22042067,0.00021395,2]
[346160036,1734761438134,-500.0,0.00021395,2]
[346160037,1734761438143,-500.0,0.00021395,2]
[346160038,1734761438153,-500.0,0.00021395,2]
[346160039,1734761438163,-500.0,0.00021395,2]
[346160040,1734761438173,-500.0,0.00021395,2]
[346160041,1734761438182,-1331.01,0.00021395,2]
[346160042,1734761438192,-500.0,0.00021395,2]
[346160043,1734761438202,-157.265424,0.00021395,2]
[346160044,1734761438212,-500.0,0.00021395,2]
[346160045,1734761438221,-500.0,0.00021395,2]
[346160046,1734761438230,-500.0,0.00021395,2]
[346160047,1734761438240,-1319.1,0.00021395,2]
[346160048,1734761438251,-500.0,0.00021395,2]
[346160049,1734761438260,-500.0,0.00021395,2]
[346160050,1734761438270,-756.99,0.00021395,2]
[346160051,1734761438279,-733.14,0.00021395,2]
[346160052,1734761438288,-506.24196487,0.00021395,2]
[346160053,1734761438297,-500.0,0.00021395,2]
[346160054,1734761438307,-500.0,0.00021395,2]
[346160055,1734761438317,-500.0,0.00021395,2]
[346160056,1734761438327,-500.0,0.00021395,2]
[346160057,1734761438336,-867.97,0.00021395,2]
[346160058,1734761438346,-157.564534,0.00021395,2]
[346160059,1734761438356,-764.85,0.00021395,2]
[346160060,1734761438365,-500.0,0.00021395,2]
[346160061,1734761438374,-639.07,0.00021395,2]
[346160062,1734761438383,-500.0,0.00021395,2]
[346160063,1734761438392,-500.0,0.00021395,2]
[346160064,1734761438401,-500.0,0.00021395,2]
[346160065,1734761438410,-500.0,0.00021395,2]
[346160066,1734761438419,-549.04,0.00021395,2]
[346160067,1734761438428,-500.0,0.00021395,2]
[346160068,1734761438437,-500.0,0.00021395,2]
[346160069,1734761438446,-821.73,0.00021395,2]
[346160070,1734761438455,-500.0,0.00021395,2]
[346160071,1734761438464,-500.0,0.00021395,2]
[346160072,1734761438473,-500.0,0.00021395,2]
[346160073,1734761438482,-500.0,0.00021395,2]
[346160074,1734761438491,-500.0,0.00021395,2]
[346160075,1734761438502,-500.35,0.00021395,2]
[346160076,1734761438512,-500.0,0.00021395,2]
[346160077,1734761438522,-500.0,0.00021395,2]
[346160078,1734761438532,-500.0,0.00021395,2]
[346160079,1734761438542,-734.87,0.00021395,2]
[346160080,1734761438553,-500.0,0.00021395,2]
[346160081,1734761438562,-690.43,0.00021395,2]
[346160082,1734761438572,-500.0,0.00021395,2]
[346160083,1734761438582,-816.14,0.00021395,2]
[346160084,1734761438592,-308.31187274,0.00021395,2]
[346160085,1734761438602,-500.0,0.00021395,2]
[346160086,1734761438611,-500.0,0.00021395,2]
[346160087,1734761438621,-509.7339575,0.00021395,2]
[346160088,1734761438631,-500.0,0.00021395,2]
[346160089,1734761438640,-500.0,0.00021395,2]
[346160090,1734761438650,-500.0,0.00021395,2]
[346160091,1734761438660,-500.0,0.00021395,2]
[346160092,1734761438670,-500.0,0.00021395,2]
[346160093,1734761438680,-607.66,0.00021395,2]
[346160094,1734761438689,-528.77,0.00021395,2]
[346160095,1734761438700,-500.0,0.00021395,2]
[346160096,1734761438710,-500.0,0.00021395,2]
[346160097,1734761438719,-238.19961183,0.00021395,2]
[346160098,1734761438729,-500.0,0.00021395,2]
[346160099,1734761438738,-500.0,0.00021395,2]
[346160100,1734761438750,-500.0,0.00021395,2]
[346160101,1734761438760,-500.0,0.00021395,2]
[346160102,1734761438770,-822.27,0.00021395,2]
[346160103,1734761438780,-500.0,0.00021395,2]
[346160104,1734761438790,-500.0,0.00021395,2]
[346160105,1734761438800,-500.0,0.00021395,2]
[346160106,1734761438810,-788.32,0.00021395,2]
[346160107,1734761438819,-500.0,0.00021395,2]
[346160108,1734761438829,-6908.58,0.00021395,2]
[346160109,1734761438838,-500.0,0.00021395,2]
[346160110,1734761438848,-500.0,0.00021395,2]
[346160111,1734761438858,-500.0,0.00021395,2]
[346160112,1734761438868,-706.12,0.00021395,2]
[346160113,1734761438877,-500.0,0.00021395,2]
[346160116,1734761438887,-500.0,0.00021395,2]
[346160118,1734761438897,-1423.68,0.00021395,2]
[346160119,1734761438910,-500.0,0.00021395,2]
[346160121,1734761438919,-500.0,0.00021395,2]
[346160122,1734761438929,-500.0,0.00021395,2]
[346160123,1734761438939,-553.72,0.00021395,2]
[346160124,1734761438949,-517.30932268,0.00021395,2]
[346160125,1734761438959,-500.0,0.00021395,2]
[346160126,1734761438969,-500.0,0.00021395,2]
[346160127,1734761438979,-674.15,0.00021395,2]
[346160128,1734761438990,-848.78,0.00021395,2]
[346160129,1734761439001,-500.0,0.00021395,2]
[346160130,1734761439011,-603.75,0.00021395,2]
[346160131,1734761439020,-657.69,0.00021395,2]
[346160132,1734761439030,-500.0,0.00021395,2]
[346160133,1734761439040,-775.87,0.00021395,2]
[346160134,1734761439049,-2296.79,0.00021395,2]
[346160135,1734761439059,-500.0,0.00021395,2]
[346160136,1734761439069,-535.35,0.00021395,2]
[346160137,1734761439079,-500.0,0.00021395,2]
[346160138,1734761439089,-500.0,0.00021395,2]
[346160139,1734761439098,-500.0,0.00021395,2]
[346160140,1734761439108,-1691.53,0.00021395,2]
[346160141,1734761439118,-500.0,0.00021395,2]
[346160142,1734761439127,-500.0,0.00021395,2]
[346160143,1734761439137,-500.0,0.00021395,2]
[346160144,1734761439147,-500.0,0.00021395,2]
[346160145,1734761439157,-500.0,0.00021395,2]
[346160146,1734761439167,-786.37,0.00021395,2]
[346160147,1734761439177,-1366.94,0.00021395,2]
[346160148,1734761439186,-594.73,0.00021395,2]
[346160149,1734761439197,-500.0,0.00021395,2]
[346160150,1734761439207,-500.0,0.00021395,2]
[346160151,1734761439217,-500.0,0.00021395,2]